Workbook

Sheet 재고 목록
K2: 재주문할 항목을 강조 표시할까요? | L2: 예
B3: 재주문 | C3: 재고 ID | D3: 이름 | E3: 설명 | F3: 단가 | G3: 재고 수량 | H3: 재고 값 | I3: 재주문 수준 | J3: 재주문 일수 | K3: 재주문 수량 | L3: 중단된 항목인가요?
B4: =IFERROR((재고_목록_표[[#This Row],[재고 수량]]<=재고_목록_표[[#This Row],[재주문 수준]])*(재고_목록_표[[#This Row],[중단된 항목인가요?]]="")*강조값,0) -> 1 | C4: IN0001 | D4: 항목 1 | E4: 설명 1 | F4: ₩51.00 | G4: 25 | H4: =재고_목록_표[[#This Row],[단가]]*재고_목록_표[[#This Row],[재고 수량]] -> ₩1,275.00 | I4: 29 | J4: 13 | K4: 50
B5: =IFERROR((재고_목록_표[[#This Row],[재고 수량]]<=재고_목록_표[[#This Row],[재주문 수준]])*(재고_목록_표[[#This Row],[중단된 항목인가요?]]="")*강조값,0) -> 1 | C5: IN0002 | D5: 항목 2 | E5: 설명 2 | F5: ₩93.00 | G5: 132 | H5: =재고_목록_표[[#This Row],[단가]]*재고_목록_표[[#This Row],[재고 수량]] -> ₩12,276.00 | I5: 231 | J5: 4 | K5: 50
B6: =IFERROR((재고_목록_표[[#This Row],[재고 수량]]<=재고_목록_표[[#This Row],[재주문 수준]])*(재고_목록_표[[#This Row],[중단된 항목인가요?]]="")*강조값,0) -> 0 | C6: IN0003 | D6: 항목 3 | E6: 설명 3 | F6: ₩57.00 | G6: 151 | H6: =재고_목록_표[[#This Row],[단가]]*재고_목록_표[[#This Row],[재고 수량]] -> ₩8,607.00 | I6: 114 | J6: 11 | K6: 150
B7: =IFERROR((재고_목록_표[[#This Row],[재고 수량]]<=재고_목록_표[[#This Row],[재주문 수준]])*(재고_목록_표[[#This Row],[중단된 항목인가요?]]="")*강조값,0) -> 0 | C7: IN0004 | D7: 항목 4 | E7: 설명 4 | F7: ₩19.00 | G7: 186 | H7: =재고_목록_표[[#This Row],[단가]]*재고_목록_표[[#This Row],[재고 수량]] -> ₩3,534.00 | I7: 158 | J7: 6 | K7: 50
B8: =IFERROR((재고_목록_표[[#This Row],[재고 수량]]<=재고_목록_표[[#This Row],[재주문 수준]])*(재고_목록_표[[#This Row],[중단된 항목인가요?]]="")*강조값,0) -> 0 | C8: IN0005 | D8: 항목 5 | E8: 설명 5 | F8: ₩75.00 | G8: 62 | H8: =재고_목록_표[[#This Row],[단가]]*재고_목록_표[[#This Row],[재고 수량]] -> ₩4,650.00 | I8: 39 | J8: 12 | K8: 50
B9: =IFERROR((재고_목록_표[[#This Row],[재고 수량]]<=재고_목록_표[[#This Row],[재주문 수준]])*(재고_목록_표[[#This Row],[중단된 항목인가요?]]="")*강조값,0) -> 1 | C9: IN0006 | D9: 항목 6 | E9: 설명 6 | F9: ₩11.00 | G9: 5 | H9: =재고_목록_표[[#This Row],[단가]]*재고_목록_표[[#This Row],[재고 수량]] -> ₩55.00 | I9: 9 | J9: 13 | K9: 150
B10: =IFERROR((재고_목록_표[[#This Row],[재고 수량]]<=재고_목록_표[[#This Row],[재주문 수준]])*(재고_목록_표[[#This Row],[중단된 항목인가요?]]="")*강조값,0) -> 0 | C10: IN0007 | D10: 항목 7 | E10: 설명 7 | F10: ₩56.00 | G10: 58 | H10: =재고_목록_표[[#This Row],[단가]]*재고_목록_표[[#This Row],[재고 수량]] -> ₩3,248.00 | I10: 109 | J10: 7 | K10: 100 | L10: 예
B11: =IFERROR((재고_목록_표[[#This Row],[재고 수량]]<=재고_목록_표[[#This Row],[재주문 수준]])*(재고_목록_표[[#This Row],[중단된 항목인가요?]]="")*강조값,0) -> 1 | C11: IN0008 | D11: 항목 8 | E11: 설명 8 | F11: ₩38.00 | G11: 101 | H11: =재고_목록_표[[#This Row],[단가]]*재고_목록_표[[#This Row],[재고 수량]] -> ₩3,838.00 | I11: 162 | J11: 3 | K11: 100
B12: =IFERROR((재고_목록_표[[#This Row],[재고 수량]]<=재고_목록_표[[#This Row],[재주문 수준]])*(재고_목록_표[[#This Row],[중단된 항목인가요?]]="")*강조값,0) -> 0 | C12: IN0009 | D12: 항목 9 | E12: 설명 9 | F12: ₩59.00 | G12: 122 | H12: =재고_목록_표[[#This Row],[단가]]*재고_목록_표[[#This Row],[재고 수량]] -> ₩7,198.00 | I12: 82 | J12: 3 | K12: 150
B13: =IFERROR((재고_목록_표[[#This Row],[재고 수량]]<=재고_목록_표[[#This Row],[재주문 수준]])*(재고_목록_표[[#This Row],[중단된 항목인가요?]]="")*강조값,0) -> 1 | C13: IN0010 | D13: 항목 10 | E13: 설명 10 | F13: ₩50.00 | G13: 175 | H13: =재고_목록_표[[#This Row],[단가]]*재고_목록_표[[#This Row],[재고 수량]] -> ₩8,750.00 | I13: 283 | J13: 8 | K13: 150
B14: =IFERROR((재고_목록_표[[#This Row],[재고 수량]]<=재고_목록_표[[#This Row],[재주문 수준]])*(재고_목록_표[[#This Row],[중단된 항목인가요?]]="")*강조값,0) -> 1 | C14: IN0011 | D14: 항목 11 | E14: 설명 11 | F14: ₩59.00 | G14: 176 | H14: =재고_목록_표[[#This Row],[단가]]*재고_목록_표[[#This Row],[재고 수량]] -> ₩10,384.00 | I14: 229 | J14: 1 | K14: 100
B15: =IFERROR((재고_목록_표[[#This Row],[재고 수량]]<=재고_목록_표[[#This Row],[재주문 수준]])*(재고_목록_표[[#This Row],[중단된 항목인가요?]]="")*강조값,0) -> 1 | C15: IN0012 | D15: 항목 12 | E15: 설명 12 | F15: ₩18.00 | G15: 22 | H15: =재고_목록_표[[#This Row],[단가]]*재고_목록_표[[#This Row],[재고 수량]] -> ₩396.00 | I15: 36 | J15: 12 | K15: 50
B16: =IFERROR((재고_목록_표[[#This Row],[재고 수량]]<=재고_목록_표[[#This Row],[재주문 수준]])*(재고_목록_표[[#This Row],[중단된 항목인가요?]]="")*강조값,0) -> 1 | C16: IN0013 | D16: 항목 13 | E16: 설명 13 | F16: ₩26.00 | G16: 72 | H16: =재고_목록_표[[#This Row],[단가]]*재고_목록_표[[#This Row],[재고 수량]] -> ₩1,872.00 | I16: 102 | J16: 9 | K16: 100
B17: =IFERROR((재고_목록_표[[#This Row],[재고 수량]]<=재고_목록_표[[#This Row],[재주문 수준]])*(재고_목록_표[[#This Row],[중단된 항목인가요?]]="")*강조값,0) -> 1 | C17: IN0014 | D17: 항목 14 | E17: 설명 14 | F17: ₩42.00 | G17: 62 | H17: =재고_목록_표[[#This Row],[단가]]*재고_목록_표[[#This Row],[재고 수량]] -> ₩2,604.00 | I17: 83 | J17: 2 | K17: 100
B18: =IFERROR((재고_목록_표[[#This Row],[재고 수량]]<=재고_목록_표[[#This Row],[재주문 수준]])*(재고_목록_표[[#This Row],[중단된 항목인가요?]]="")*강조값,0) -> 0 | C18: IN0015 | D18: 항목 15 | E18: 설명 15 | F18: ₩32.00 | G18: 46 | H18: =재고_목록_표[[#This Row],[단가]]*재고_목록_표[[#This Row],[재고 수량]] -> ₩1,472.00 | I18: 23 | J18: 15 | K18: 50
B19: =IFERROR((재고_목록_표[[#This Row],[재고 수량]]<=재고_목록_표[[#This Row],[재주문 수준]])*(재고_목록_표[[#This Row],[중단된 항목인가요?]]="")*강조값,0) -> 1 | C19: IN0016 | D19: 항목 16 | E19: 설명 16 | F19: ₩90.00 | G19: 96 | H19: =재고_목록_표[[#This Row],[단가]]*재고_목록_표[[#This Row],[재고 수량]] -> ₩8,640.00 | I19: 180 | J19: 3 | K19: 50
B20: =IFERROR((재고_목록_표[[#This Row],[재고 수량]]<=재고_목록_표[[#This Row],[재주문 수준]])*(재고_목록_표[[#This Row],[중단된 항목인가요?]]="")*강조값,0) -> 0 | C20: IN0017 | D20: 항목 17 | E20: 설명 17 | F20: ₩97.00 | G20: 57 | H20: =재고_목록_표[[#This Row],[단가]]*재고_목록_표[[#This Row],[재고 수량]] -> ₩5,529.00 | I20: 98 | J20: 12 | K20: 50 | L20: 예
B21: =IFERROR((재고_목록_표[[#This Row],[재고 수량]]<=재고_목록_표[[#This Row],[재주문 수준]])*(재고_목록_표[[#This Row],[중단된 항목인가요?]]="")*강조값,0) -> 1 | C21: IN0018 | D21: 항목 18 | E21: 설명 18 | F21: ₩12.00 | G21: 6 | H21: =재고_목록_표[[#This Row],[단가]]*재고_목록_표[[#This Row],[재고 수량]] -> ₩72.00 | I21: 7 | J21: 13 | K21: 50
B22: =IFERROR((재고_목록_표[[#This Row],[재고 수량]]<=재고_목록_표[[#This Row],[재주문 수준]])*(재고_목록_표[[#This Row],[중단된 항목인가요?]]="")*강조값,0) -> 1 | C22: IN0019 | D22: 항목 19 | E22: 설명 19 | F22: ₩82.00 | G22: 143 | H22: =재고_목록_표[[#This Row],[단가]]*재고_목록_표[[#This Row],[재고 수량]] -> ₩11,726.00 | I22: 164 | J22: 12 | K22: 150
B23: =IFERROR((재고_목록_표[[#This Row],[재고 수량]]<=재고_목록_표[[#This Row],[재주문 수준]])*(재고_목록_표[[#This Row],[중단된 항목인가요?]]="")*강조값,0) -> 0 | C23: IN0020 | D23: 항목 20 | E23: 설명 20 | F23: ₩16.00 | G23: 124 | H23: =재고_목록_표[[#This Row],[단가]]*재고_목록_표[[#This Row],[재고 수량]] -> ₩1,984.00 | I23: 113 | J23: 14 | K23: 50
B24: =IFERROR((재고_목록_표[[#This Row],[재고 수량]]<=재고_목록_표[[#This Row],[재주문 수준]])*(재고_목록_표[[#This Row],[중단된 항목인가요?]]="")*강조값,0) -> 0 | C24: IN0021 | D24: 항목 21 | E24: 설명 21 | F24: ₩19.00 | G24: 112 | H24: =재고_목록_표[[#This Row],[단가]]*재고_목록_표[[#This Row],[재고 수량]] -> ₩2,128.00 | I24: 75 | J24: 11 | K24: 50
B25: =IFERROR((재고_목록_표[[#This Row],[재고 수량]]<=재고_목록_표[[#This Row],[재주문 수준]])*(재고_목록_표[[#This Row],[중단된 항목인가요?]]="")*강조값,0) -> 0 | C25: IN0022 | D25: 항목 22 | E25: 설명 22 | F25: ₩24.00 | G25: 182 | H25: =재고_목록_표[[#This Row],[단가]]*재고_목록_표[[#This Row],[재고 수량]] -> ₩4,368.00 | I25: 132 | J25: 15 | K25: 150
B26: =IFERROR((재고_목록_표[[#This Row],[재고 수량]]<=재고_목록_표[[#This Row],[재주문 수준]])*(재고_목록_표[[#This Row],[중단된 항목인가요?]]="")*강조값,0) -> 0 | C26: IN0023 | D26: 항목 23 | E26: 설명 23 | F26: ₩29.00 | G26: 106 | H26: =재고_목록_표[[#This Row],[단가]]*재고_목록_표[[#This Row],[재고 수량]] -> ₩3,074.00 | I26: 142 | J26: 1 | K26: 150 | L26: 예
B27: =IFERROR((재고_목록_표[[#This Row],[재고 수량]]<=재고_목록_표[[#This Row],[재주문 수준]])*(재고_목록_표[[#This Row],[중단된 항목인가요?]]="")*강조값,0) -> 0 | C27: IN0024 | D27: 항목 24 | E27: 설명 24 | F27: ₩75.00 | G27: 173 | H27: =재고_목록_표[[#This Row],[단가]]*재고_목록_표[[#This Row],[재고 수량]] -> ₩12,975.00 | I27: 127 | J27: 9 | K27: 100
B28: =IFERROR((재고_목록_표[[#This Row],[재고 수량]]<=재고_목록_표[[#This Row],[재주문 수준]])*(재고_목록_표[[#This Row],[중단된 항목인가요?]]="")*강조값,0) -> 0 | C28: IN0025 | D28: 항목 25 | E28: 설명 25 | F28: ₩14.00 | G28: 28 | H28: =재고_목록_표[[#This Row],[단가]]*재고_목록_표[[#This Row],[재고 수량]] -> ₩392.00 | I28: 21 | J28: 8 | K28: 50
